[Event "Titled Tuesday Blitz May 2 Late 2023"]
[White "Liu, Eric"]
[Black "Ansh M Shah"]
[WhiteFideId "30960240"]
[BlackFideId "25033379"]
[WhiteElo "2094"]
[BlackElo "2084"]
[Result "1/2-1/2"]
[Round "07"]
[TimeControl "180+2"]
[Date "2023.05.02"]
[WhiteClock "0:00:53"]
[BlackClock "0:00:44"]

1. b3 {[%clk 0:02:46]}  Nf6 {[%clk 0:02:58]} 2. Bb2 {[%clk 0:02:47]}  Nc6 {[%clk 0:02:56]} 3. e3 {[%clk 0:02:47]}  d5 {[%clk 0:02:56]} 4. h4 {[%clk 0:02:48]}  h6 {[%clk 0:02:56]} 5. Be2 {[%clk 0:02:48]}  e6 {[%clk 0:02:57]} 6. c4 {[%clk 0:02:48]}  Bd6 {[%clk 0:02:56]} 7. cxd5 {[%clk 0:02:49]}  exd5 {[%clk 0:02:57]} 8. Nf3 {[%clk 0:02:50]}  Bg4 {[%clk 0:02:56]} 9. d3 {[%clk 0:02:50]}  O-O {[%clk 0:02:56]} 10. Nbd2 {[%clk 0:02:50]}  Re8 {[%clk 0:02:56]} 11. a3 {[%clk 0:02:50]}  Qe7 {[%clk 0:02:56]} 12. O-O {[%clk 0:02:50]}  Rad8 {[%clk 0:02:54]} 13. Rc1 {[%clk 0:02:50]}  Bf5 {[%clk 0:02:51]} 14. b4 {[%clk 0:02:49]}  a6 {[%clk 0:02:51]} 15. Nb3 {[%clk 0:02:49]}  Ne5 {[%clk 0:02:51]} 16. Nfd4 {[%clk 0:02:46]}  Bc8 {[%clk 0:02:48]} 17. h5 {[%clk 0:02:43]}  Nfg4 {[%clk 0:02:40]} 18. g3 {[%clk 0:02:38]}  Qg5 {[%clk 0:02:12]} 19. Nf3 {[%clk 0:01:58]}  Nxf3+ {[%clk 0:01:36]} 20. Bxf3 {[%clk 0:01:59]}  Qxh5 {[%clk 0:01:36]} 21. Bxg4 {[%clk 0:01:56]}  Bxg4 {[%clk 0:01:36]} 22. f3 {[%clk 0:01:57]}  Bh3 {[%clk 0:01:24]} 23. g4 {[%clk 0:01:51]}  Qh4 {[%clk 0:01:23]} 24. Qe1 {[%clk 0:01:50]}  Bg3 {[%clk 0:01:23]} 25. Qe2 {[%clk 0:01:50]}  Bxf1 {[%clk 0:01:15]} 26. Rxf1 {[%clk 0:01:51]}  b6 {[%clk 0:01:08]} 27. Ba1 {[%clk 0:01:51]}  Bd6 {[%clk 0:01:06]} 28. Rf2 {[%clk 0:01:48]}  Qg5 {[%clk 0:01:03]} 29. f4 {[%clk 0:01:44]}  Bxf4 {[%clk 0:01:02]} 30. exf4 {[%clk 0:01:42]}  Rxe2 {[%clk 0:01:01]} 31. fxg5 {[%clk 0:01:43]}  Rxf2 {[%clk 0:00:55]} 32. Kxf2 {[%clk 0:01:44]}  hxg5 {[%clk 0:00:54]} 33. Nd4 {[%clk 0:01:25]}  c5 {[%clk 0:00:48]} 34. bxc5 {[%clk 0:01:26]}  bxc5 {[%clk 0:00:49]} 35. Nc6 {[%clk 0:01:26]}  Rd6 {[%clk 0:00:47]} 36. Ne7+ {[%clk 0:01:27]}  Kf8 {[%clk 0:00:45]} 37. Nf5 {[%clk 0:01:27]}  Rb6 {[%clk 0:00:41]} 38. Bxg7+ {[%clk 0:01:28]}  Ke8 {[%clk 0:00:41]} 39. Be5 {[%clk 0:01:13]}  Kd7 {[%clk 0:00:32]} 40. Ke3 {[%clk 0:01:03]}  Rb3 {[%clk 0:00:31]} 41. Bf6 {[%clk 0:00:57]}  c4 {[%clk 0:00:26]} 42. Bxg5 {[%clk 0:00:57]}  Rxd3+ {[%clk 0:00:26]} 43. Ke2 {[%clk 0:00:58]}  Rxa3 {[%clk 0:00:26]} 44. Bf6 {[%clk 0:00:47]}  Rd3 {[%clk 0:00:25]} 45. g5 {[%clk 0:00:46]}  a5 {[%clk 0:00:20]} 46. Nd4 {[%clk 0:00:36]}  a4 {[%clk 0:00:19]} 47. Nf3 {[%clk 0:00:35]}  Ke6 {[%clk 0:00:17]} 48. Ne5 {[%clk 0:00:35]}  Rb3 {[%clk 0:00:16]} 49. Nc6 {[%clk 0:00:35]}  Rb6 {[%clk 0:00:12]} 50. Nd8+ {[%clk 0:00:35]}  Kf5 {[%clk 0:00:11]} 51. Nxf7 {[%clk 0:00:36]}  a3 {[%clk 0:00:10]} 52. Bd4 {[%clk 0:00:25]}  Kg6 {[%clk 0:00:07]} 53. Bxb6 {[%clk 0:00:24]}  Kxf7 {[%clk 0:00:07]} 54. Bd4 {[%clk 0:00:16]}  Kg6 {[%clk 0:00:07]} 55. Bf6 {[%clk 0:00:15]}  d4 {[%clk 0:00:07]} 56. Bxd4 {[%clk 0:00:09]}  Kxg5 {[%clk 0:00:07]} 57. Ba1 {[%clk 0:00:07]}  Kf5 {[%clk 0:00:07]} 58. Kd2 {[%clk 0:00:08]}  Ke4 {[%clk 0:00:07]} 59. Kc3 {[%clk 0:00:09]}  Kd5 {[%clk 0:00:07]} 60. Kb4 {[%clk 0:00:09]}  a2 {[%clk 0:00:07]} 61. Kc3 {[%clk 0:00:09]}  Kc5 {[%clk 0:00:07]} 62. Kb2 {[%clk 0:00:10]}  Kb4 {[%clk 0:00:05]} 63. Kxa2 {[%clk 0:00:11]}  c3 {[%clk 0:00:05]} 64. Kb1 {[%clk 0:00:12]}  Kb3 {[%clk 0:00:06]} 65. Kc1 {[%clk 0:00:13]}  c2 {[%clk 0:00:06]} 66. Bf6 {[%clk 0:00:12]}  Kc4 {[%clk 0:00:05]} 67. Bh4 {[%clk 0:00:13]}  Kd5 {[%clk 0:00:06]} 68. Bf2 {[%clk 0:00:14]}  Ke4 {[%clk 0:00:06]} 69. Ba7 {[%clk 0:00:15]}  Kd5 {[%clk 0:00:07]} 70. Bg1 {[%clk 0:00:16]}  Kc4 {[%clk 0:00:08]} 71. Ba7 {[%clk 0:00:16]}  Kb5 {[%clk 0:00:09]} 72. Bb8 {[%clk 0:00:17]}  Kc6 {[%clk 0:00:10]} 73. Bh2 {[%clk 0:00:17]}  Kb5 {[%clk 0:00:11]} 74. Bg3 {[%clk 0:00:18]}  Kc6 {[%clk 0:00:12]} 75. Bf2 {[%clk 0:00:19]}  Kb5 {[%clk 0:00:13]} 76. Bg1 {[%clk 0:00:20]}  Kc6 {[%clk 0:00:13]} 77. Bh2 {[%clk 0:00:20]}  Kb5 {[%clk 0:00:14]} 78. Bg3 {[%clk 0:00:21]}  Kc6 {[%clk 0:00:15]} 79. Bh4 {[%clk 0:00:22]}  Kb5 {[%clk 0:00:16]} 80. Bg5 {[%clk 0:00:23]}  Kc6 {[%clk 0:00:17]} 81. Bh6 {[%clk 0:00:24]}  Kb5 {[%clk 0:00:18]} 82. Bg7 {[%clk 0:00:25]}  Kc6 {[%clk 0:00:19]} 83. Bh8 {[%clk 0:00:26]}  Kb5 {[%clk 0:00:20]} 84. Bg7 {[%clk 0:00:27]}  Kc6 {[%clk 0:00:21]} 85. Bh6 {[%clk 0:00:28]}  Kb5 {[%clk 0:00:22]} 86. Bf8 {[%clk 0:00:29]}  Kc6 {[%clk 0:00:22]} 87. Bg7 {[%clk 0:00:29]}  Kb5 {[%clk 0:00:23]} 88. Bf6 {[%clk 0:00:30]}  Kc6 {[%clk 0:00:24]} 89. Bg5 {[%clk 0:00:31]}  Kd5 {[%clk 0:00:24]} 90. Bf4 {[%clk 0:00:32]}  Ke4 {[%clk 0:00:25]} 91. Bg3 {[%clk 0:00:33]}  Kf5 {[%clk 0:00:26]} 92. Bf2 {[%clk 0:00:34]}  Kg4 {[%clk 0:00:27]} 93. Bg1 {[%clk 0:00:35]}  Kf3 {[%clk 0:00:28]} 94. Bd4 {[%clk 0:00:35]}  Ke4 {[%clk 0:00:28]} 95. Bc3 {[%clk 0:00:36]}  Kd3 {[%clk 0:00:29]} 96. Bb2 {[%clk 0:00:36]}  Kc4 {[%clk 0:00:29]} 97. Ba3 {[%clk 0:00:37]}  Kb3 {[%clk 0:00:30]} 98. Be7 {[%clk 0:00:38]}  Kc3 {[%clk 0:00:31]} 99. Bf6+ {[%clk 0:00:39]}  Kd3 {[%clk 0:00:31]} 100. Bg5 {[%clk 0:00:40]}  Kc3 {[%clk 0:00:32]} 101. Bh4 {[%clk 0:00:41]}  Kd3 {[%clk 0:00:33]} 102. Bd8 {[%clk 0:00:42]}  Kc3 {[%clk 0:00:33]} 103. Ba5+ {[%clk 0:00:43]}  Kb3 {[%clk 0:00:34]} 104. Be1 {[%clk 0:00:44]}  Kc4 {[%clk 0:00:34]} 105. Bg3 {[%clk 0:00:44]}  Kb3 {[%clk 0:00:35]} 106. Bb8 {[%clk 0:00:45]}  Kc4 {[%clk 0:00:36]} 107. Bh2 {[%clk 0:00:46]}  Kb3 {[%clk 0:00:37]} 108. Bg1 {[%clk 0:00:47]}  Kc4 {[%clk 0:00:38]} 109. Ba7 {[%clk 0:00:47]}  Kb3 {[%clk 0:00:38]} 110. Be3 {[%clk 0:00:48]}  Kc4 {[%clk 0:00:39]} 111. Bf2 {[%clk 0:00:49]}  Kb3 {[%clk 0:00:40]} 112. Bg3 {[%clk 0:00:50]}  Kc4 {[%clk 0:00:41]} 113. Bh4 {[%clk 0:00:51]}  Kb3 {[%clk 0:00:42]} 114. Bg5 {[%clk 0:00:52]}  Kc4 {[%clk 0:00:43]} 115. Bf6 {[%clk 0:00:53]}  Kb3 {[%clk 0:00:44]} 1/2-1/2


[Site "https://www.chess.com"]

[Event "Titled Tuesday Blitz May 2 Late 2023"]
[White "Yeritsyan, Hayk"]
[Black "Estremera Panos, Sergio"]
[WhiteFideId "13307320"]
[BlackFideId "2200864"]
[WhiteElo "2241"]
[BlackElo "2253"]
[Result "1-0"]
[Round "07"]
[TimeControl "180+2"]
[Date "2023.05.02"]
[WhiteClock "0:01:41"]
[BlackClock "0:01:15"]

1. d4 {[%clk 0:02:50]}  d5 {[%clk 0:02:56]} 2. Nf3 {[%clk 0:02:50]}  Nf6 {[%clk 0:02:54]} 3. e3 {[%clk 0:02:51]}  e6 {[%clk 0:02:54]} 4. Bd3 {[%clk 0:02:51]}  c5 {[%clk 0:02:52]} 5. c3 {[%clk 0:02:51]}  Be7 {[%clk 0:02:51]} 6. Nbd2 {[%clk 0:02:51]}  O-O {[%clk 0:02:51]} 7. Qe2 {[%clk 0:02:51]}  b6 {[%clk 0:02:51]} 8. e4 {[%clk 0:02:50]}  Bb7 {[%clk 0:02:44]} 9. O-O {[%clk 0:02:50]}  dxe4 {[%clk 0:02:42]} 10. Nxe4 {[%clk 0:02:50]}  Nxe4 {[%clk 0:02:43]} 11. Bxe4 {[%clk 0:02:50]}  Bxe4 {[%clk 0:02:43]} 12. Qxe4 {[%clk 0:02:51]}  Nd7 {[%clk 0:02:42]} 13. Be3 {[%clk 0:02:50]}  Nf6 {[%clk 0:02:42]} 14. Qc2 {[%clk 0:02:49]}  Qc7 {[%clk 0:02:41]} 15. Rad1 {[%clk 0:02:47]}  Rfd8 {[%clk 0:02:41]} 16. Rfe1 {[%clk 0:02:46]}  Nd5 {[%clk 0:02:37]} 17. Qe2 {[%clk 0:02:43]}  h6 {[%clk 0:02:32]} 18. h3 {[%clk 0:02:43]}  Bf6 {[%clk 0:02:27]} 19. dxc5 {[%clk 0:02:42]}  bxc5 {[%clk 0:02:24]} 20. Bc1 {[%clk 0:02:35]}  Nf4 {[%clk 0:02:11]} 21. Bxf4 {[%clk 0:02:34]}  Qxf4 {[%clk 0:02:12]} 22. Rxd8+ {[%clk 0:02:33]}  Rxd8 {[%clk 0:02:11]} 23. Rd1 {[%clk 0:02:34]}  Rxd1+ {[%clk 0:02:09]} 24. Qxd1 {[%clk 0:02:35]}  Qc4 {[%clk 0:02:09]} 25. Qb3 {[%clk 0:02:13]}  Qe2 {[%clk 0:02:00]} 26. Qb8+ {[%clk 0:01:58]}  Kh7 {[%clk 0:02:00]} 27. Qxa7 {[%clk 0:01:59]}  Qxb2 {[%clk 0:01:53]} 28. Qxc5 {[%clk 0:01:48]}  Qc1+ {[%clk 0:01:40]} 29. Kh2 {[%clk 0:01:46]}  Qf4+ {[%clk 0:01:40]} 30. Kh1 {[%clk 0:01:44]}  Qc1+ {[%clk 0:01:40]} 31. Ng1 {[%clk 0:01:43]}  Qxc3 {[%clk 0:01:27]} 32. Qxc3 {[%clk 0:01:42]}  Bxc3 {[%clk 0:01:28]} 33. Ne2 {[%clk 0:01:41]}  Ba5 {[%clk 0:01:23]} 34. a4 {[%clk 0:01:41]}  Kg6 {[%clk 0:01:23]} 35. Nd4 {[%clk 0:01:41]}  Kf6 {[%clk 0:01:19]} 36. Nc6 {[%clk 0:01:42]}  Be1 {[%clk 0:01:14]} 37. Kg1 {[%clk 0:01:40]}  e5 {[%clk 0:01:13]} 38. a5 {[%clk 0:01:41]}  Ke6 {[%clk 0:01:14]} 39. a6 {[%clk 0:01:41]}  Kd6 {[%clk 0:01:14]} 40. a7 {[%clk 0:01:41]}  Kxc6 {[%clk 0:01:15]} 41. a8=Q+ {[%clk 0:01:41]} 1-0


[Site "https://www.chess.com"]

[Event "Titled Tuesday Blitz May 2 Late 2023"]
[White "Prydun, Andriy"]
[Black "Kalaiyalahan, Akshaya"]
[WhiteFideId "14145898"]
[BlackFideId "422894"]
[WhiteElo "2164"]
[BlackElo "2043"]
[Result "1-0"]
[Round "07"]
[TimeControl "180+2"]
[Date "2023.05.02"]
[WhiteClock "0:00:15"]
[BlackClock "0:00:09"]

1. e4 {[%clk 0:03:00]}  e6 {[%clk 0:02:59]} 2. d4 {[%clk 0:03:00]}  d5 {[%clk 0:02:59]} 3. exd5 {[%clk 0:02:58]}  exd5 {[%clk 0:02:58]} 4. c3 {[%clk 0:02:57]}  Nf6 {[%clk 0:02:55]} 5. Bg5 {[%clk 0:02:56]}  c6 {[%clk 0:02:53]} 6. Qf3 {[%clk 0:02:51]}  Be7 {[%clk 0:02:53]} 7. Bd3 {[%clk 0:02:50]}  h6 {[%clk 0:02:52]} 8. Bxf6 {[%clk 0:02:50]}  Bxf6 {[%clk 0:02:52]} 9. Ne2 {[%clk 0:02:51]}  O-O {[%clk 0:02:51]} 10. O-O {[%clk 0:02:51]}  a5 {[%clk 0:02:45]} 11. Nd2 {[%clk 0:02:50]}  b6 {[%clk 0:02:44]} 12. Rfe1 {[%clk 0:02:45]}  Ba6 {[%clk 0:02:43]} 13. Nf4 {[%clk 0:02:44]}  Bxd3 {[%clk 0:02:42]} 14. Nxd3 {[%clk 0:02:44]}  Nd7 {[%clk 0:02:41]} 15. Re2 {[%clk 0:02:35]}  Re8 {[%clk 0:02:39]} 16. Rae1 {[%clk 0:02:35]}  Rxe2 {[%clk 0:02:38]} 17. Rxe2 {[%clk 0:02:36]}  Qc7 {[%clk 0:02:34]} 18. g3 {[%clk 0:02:31]}  a4 {[%clk 0:02:27]} 19. a3 {[%clk 0:02:30]}  Qd6 {[%clk 0:02:24]} 20. Nf4 {[%clk 0:02:12]}  Bg5 {[%clk 0:02:12]} 21. h4 {[%clk 0:01:57]}  Bxf4 {[%clk 0:02:11]} 22. Qxf4 {[%clk 0:01:58]}  Qxf4 {[%clk 0:02:09]} 23. gxf4 {[%clk 0:01:59]}  Kf8 {[%clk 0:02:09]} 24. Nf3 {[%clk 0:01:58]}  f6 {[%clk 0:02:02]} 25. h5 {[%clk 0:01:52]}  Re8 {[%clk 0:01:51]} 26. Kf1 {[%clk 0:01:52]}  b5 {[%clk 0:01:48]} 27. Rxe8+ {[%clk 0:01:45]}  Kxe8 {[%clk 0:01:48]} 28. Ke2 {[%clk 0:01:46]}  Nb6 {[%clk 0:01:48]} 29. Kd3 {[%clk 0:01:46]}  Nc4 {[%clk 0:01:48]} 30. Kc2 {[%clk 0:01:46]}  Ke7 {[%clk 0:01:43]} 31. Nh4 {[%clk 0:01:44]}  Ke6 {[%clk 0:01:43]} 32. f5+ {[%clk 0:01:35]}  Kf7 {[%clk 0:01:32]} 33. Kc1 {[%clk 0:00:53]}  Ke7 {[%clk 0:01:28]} 34. Kc2 {[%clk 0:00:53]}  Kd7 {[%clk 0:01:25]} 35. Kc1 {[%clk 0:00:53]}  Kd6 {[%clk 0:01:13]} 36. Kc2 {[%clk 0:00:51]}  c5 {[%clk 0:01:13]} 37. Nf3 {[%clk 0:00:47]}  Kc6 {[%clk 0:01:02]} 38. dxc5 {[%clk 0:00:46]}  Kxc5 {[%clk 0:01:02]} 39. Nd4 {[%clk 0:00:46]}  Nd6 {[%clk 0:00:43]} 40. f3 {[%clk 0:00:47]}  Kb6 {[%clk 0:00:34]} 41. Kd3 {[%clk 0:00:46]}  Kb7 {[%clk 0:00:29]} 42. Ke3 {[%clk 0:00:28]}  Kc8 {[%clk 0:00:29]} 43. Kf4 {[%clk 0:00:28]}  Nc4 {[%clk 0:00:19]} 44. Nxb5 {[%clk 0:00:27]}  Nxb2 {[%clk 0:00:18]} 45. Nd4 {[%clk 0:00:21]}  Nd3+ {[%clk 0:00:17]} 46. Ke3 {[%clk 0:00:19]}  Nc5 {[%clk 0:00:16]} 47. Ne6 {[%clk 0:00:19]}  Nxe6 {[%clk 0:00:14]} 48. fxe6 {[%clk 0:00:19]}  Kc7 {[%clk 0:00:13]} 49. Kf4 {[%clk 0:00:15]}  Kd6 {[%clk 0:00:13]} 50. Kf5 {[%clk 0:00:16]}  Ke7 {[%clk 0:00:12]} 51. f4 {[%clk 0:00:15]}  Ke8 {[%clk 0:00:09]} 52. Kg6 {[%clk 0:00:15]} 1-0


[Site "https://www.chess.com"]

[Event "Titled Tuesday Blitz May 2 Late 2023"]
[White "Liu, Casper"]
[Black "Chemin, Justo Reinaldo"]
[WhiteFideId "1454153"]
[BlackFideId "2101580"]
[WhiteElo "2221"]
[BlackElo "1940"]
[Result "1-0"]
[Round "07"]
[TimeControl "180+2"]
[Date "2023.05.02"]
[WhiteClock "0:00:07"]
[BlackClock "0:00:01"]

1. e4 {[%clk 0:02:54]}  e6 {[%clk 0:03:00]} 2. d4 {[%clk 0:02:54]}  d5 {[%clk 0:03:00]} 3. e5 {[%clk 0:02:55]}  c5 {[%clk 0:02:59]} 4. c3 {[%clk 0:02:55]}  Qb6 {[%clk 0:02:58]} 5. Nf3 {[%clk 0:02:56]}  Bd7 {[%clk 0:02:58]} 6. Bd3 {[%clk 0:02:55]}  Nc6 {[%clk 0:02:58]} 7. O-O {[%clk 0:02:54]}  cxd4 {[%clk 0:02:58]} 8. cxd4 {[%clk 0:02:55]}  Nxd4 {[%clk 0:02:57]} 9. Nxd4 {[%clk 0:02:49]}  Qxd4 {[%clk 0:02:56]} 10. Nc3 {[%clk 0:02:49]}  Qb6 {[%clk 0:02:34]} 11. Na4 {[%clk 0:02:30]}  Qd8 {[%clk 0:02:26]} 12. Qb3 {[%clk 0:02:28]}  b6 {[%clk 0:02:16]} 13. Nc3 {[%clk 0:02:20]}  Ne7 {[%clk 0:02:15]} 14. Bg5 {[%clk 0:02:21]}  h6 {[%clk 0:02:14]} 15. Bh4 {[%clk 0:02:21]}  g5 {[%clk 0:02:14]} 16. Bg3 {[%clk 0:02:21]}  Nc6 {[%clk 0:02:11]} 17. f4 {[%clk 0:02:20]}  Bc5+ {[%clk 0:01:59]} 18. Kh1 {[%clk 0:02:20]}  gxf4 {[%clk 0:01:56]} 19. Rxf4 {[%clk 0:02:19]}  Nxe5 {[%clk 0:01:48]} 20. Be2 {[%clk 0:02:16]}  Ng6 {[%clk 0:01:48]} 21. Rff1 {[%clk 0:02:12]}  O-O {[%clk 0:01:37]} 22. Rae1 {[%clk 0:02:05]}  f5 {[%clk 0:01:35]} 23. Bh5 {[%clk 0:02:03]}  Qg5 {[%clk 0:01:34]} 24. Bxg6 {[%clk 0:01:50]}  Qxg6 {[%clk 0:01:33]} 25. a3 {[%clk 0:01:33]}  Bc6 {[%clk 0:01:26]} 26. Ne2 {[%clk 0:01:32]}  Rae8 {[%clk 0:01:17]} 27. Nf4 {[%clk 0:01:31]}  Qf7 {[%clk 0:01:11]} 28. Nd3 {[%clk 0:01:29]}  Bd4 {[%clk 0:01:02]} 29. Bd6 {[%clk 0:01:20]}  Bf6 {[%clk 0:00:51]} 30. Bxf8 {[%clk 0:01:18]}  Qxf8 {[%clk 0:00:50]} 31. Nf4 {[%clk 0:01:17]}  Qf7 {[%clk 0:00:47]} 32. Qg3+ {[%clk 0:01:06]}  Kh7 {[%clk 0:00:41]} 33. Qh3 {[%clk 0:01:00]}  Bxb2 {[%clk 0:00:30]} 34. Rf2 {[%clk 0:00:42]}  Bg7 {[%clk 0:00:15]} 35. Rc2 {[%clk 0:00:42]}  Bb7 {[%clk 0:00:14]} 36. Rec1 {[%clk 0:00:36]}  Re7 {[%clk 0:00:12]} 37. Rf1 {[%clk 0:00:29]}  e5 {[%clk 0:00:12]} 38. Nh5 {[%clk 0:00:28]}  f4 {[%clk 0:00:11]} 39. Nxg7 {[%clk 0:00:16]}  Qxg7 {[%clk 0:00:09]} 40. Qb3 {[%clk 0:00:14]}  d4 {[%clk 0:00:09]} 41. a4 {[%clk 0:00:13]}  e4 {[%clk 0:00:03]} 42. a5 {[%clk 0:00:10]}  d3 {[%clk 0:00:02]} 43. Ra2 {[%clk 0:00:07]}  e3 {[%clk 0:00:01]} 44. Qxd3+ {[%clk 0:00:07]} 1-0


[Site "https://www.chess.com"]

[Event "Titled Tuesday Blitz May 2 Late 2023"]
[White "Kujawski, Adam"]
[Black "Dobrowolski, Piotr"]
[WhiteFideId "1100920"]
[BlackFideId "1106236"]
[WhiteElo "2054"]
[BlackElo "2320"]
[Result "0-1"]
[Round "07"]
[TimeControl "180+2"]
[Date "2023.05.02"]
[WhiteClock "0:00:01"]
[BlackClock "0:00:09"]

1. e4 {[%clk 0:02:52]}  e6 {[%clk 0:02:59]} 2. d4 {[%clk 0:02:52]}  d5 {[%clk 0:02:59]} 3. Nc3 {[%clk 0:02:52]}  Bb4 {[%clk 0:02:58]} 4. Ne2 {[%clk 0:02:52]}  Nc6 {[%clk 0:02:58]} 5. a3 {[%clk 0:02:51]}  Ba5 {[%clk 0:02:58]} 6. e5 {[%clk 0:02:45]}  f6 {[%clk 0:02:58]} 7. Nf4 {[%clk 0:02:09]}  Nh6 {[%clk 0:02:51]} 8. Qh5+ {[%clk 0:02:04]}  Nf7 {[%clk 0:02:50]} 9. exf6 {[%clk 0:02:02]}  Qxf6 {[%clk 0:02:47]} 10. Be3 {[%clk 0:01:54]}  Nxd4 {[%clk 0:02:34]} 11. O-O-O {[%clk 0:01:50]}  Bxc3 {[%clk 0:02:31]} 12. bxc3 {[%clk 0:01:49]}  Nf5 {[%clk 0:02:31]} 13. Bd3 {[%clk 0:01:30]}  g6 {[%clk 0:02:17]} 14. Qe2 {[%clk 0:01:01]}  Nxe3 {[%clk 0:01:36]} 15. Qxe3 {[%clk 0:00:57]}  O-O {[%clk 0:01:32]} 16. Rhe1 {[%clk 0:00:34]}  Qxc3 {[%clk 0:01:20]} 17. Qg3 {[%clk 0:00:20]}  Qxa3+ {[%clk 0:01:16]} 18. Kd2 {[%clk 0:00:20]}  Qb4+ {[%clk 0:00:53]} 19. c3 {[%clk 0:00:18]}  Qb2+ {[%clk 0:00:53]} 20. Bc2 {[%clk 0:00:18]}  Nd6 {[%clk 0:00:44]} 21. Nxg6 {[%clk 0:00:11]}  Nc4+ {[%clk 0:00:44]} 22. Kd3 {[%clk 0:00:12]}  Rf6 {[%clk 0:00:30]} 23. Ne5+ {[%clk 0:00:04]}  Kf8 {[%clk 0:00:27]} 24. Nxc4 {[%clk 0:00:03]}  dxc4+ {[%clk 0:00:27]} 25. Kd4 {[%clk 0:00:03]}  Qb6+ {[%clk 0:00:26]} 26. Ke4 {[%clk 0:00:02]}  Qc6+ {[%clk 0:00:25]} 27. Ke3 {[%clk 0:00:03]}  Qc5+ {[%clk 0:00:24]} 28. Ke2 {[%clk 0:00:02]}  Qe7 {[%clk 0:00:17]} 29. Kf1 {[%clk 0:00:02]}  Bd7 {[%clk 0:00:12]} 30. Re5 {[%clk 0:00:02]}  Bc6 {[%clk 0:00:12]} 31. Rg5 {[%clk 0:00:02]}  Qf7 {[%clk 0:00:12]} 32. Re1 {[%clk 0:00:02]}  Rd8 {[%clk 0:00:11]} 33. Be4 {[%clk 0:00:01]}  Bxe4 {[%clk 0:00:10]} 34. Rxe4 {[%clk 0:00:02]}  Rd2 {[%clk 0:00:09]} 35. Re2 {[%clk 0:00:02]}  Rxe2 {[%clk 0:00:09]} 36. Kxe2 {[%clk 0:00:02]}  a5 {[%clk 0:00:09]} 37. f3 {[%clk 0:00:01]}  a4 {[%clk 0:00:09]} 0-1


[Site "https://www.chess.com"]

[Event "Titled Tuesday Blitz May 2 Late 2023"]
[White "Ng, Gary"]
[Black "Baltic, Fatih"]
[WhiteFideId "2604914"]
[BlackFideId "12979090"]
[WhiteElo "2213"]
[BlackElo "2200"]
[Result "1-0"]
[Round "07"]
[TimeControl "180+2"]
[Date "2023.05.02"]
[WhiteClock "0:00:06"]
[BlackClock "0:00:09"]

1. d4 {[%clk 0:03:00]}  d5 {[%clk 0:02:57]} 2. Bf4 {[%clk 0:03:01]}  c5 {[%clk 0:02:46]} 3. e3 {[%clk 0:02:58]}  Nc6 {[%clk 0:02:45]} 4. Nf3 {[%clk 0:02:53]}  f6 {[%clk 0:02:41]} 5. c3 {[%clk 0:02:46]}  Bg4 {[%clk 0:02:36]} 6. Bb5 {[%clk 0:02:40]}  a6 {[%clk 0:02:29]} 7. Bxc6+ {[%clk 0:02:32]}  bxc6 {[%clk 0:02:30]} 8. Nbd2 {[%clk 0:02:32]}  e6 {[%clk 0:02:20]} 9. Qa4 {[%clk 0:02:30]}  Qb6 {[%clk 0:02:19]} 10. Nb3 {[%clk 0:02:13]}  Bxf3 {[%clk 0:02:17]} 11. dxc5 {[%clk 0:02:03]}  Bxc5 {[%clk 0:02:16]} 12. Nxc5 {[%clk 0:01:57]}  Qxc5 {[%clk 0:02:16]} 13. gxf3 {[%clk 0:01:57]}  e5 {[%clk 0:02:16]} 14. Bg3 {[%clk 0:01:56]}  Ne7 {[%clk 0:02:16]} 15. Qg4 {[%clk 0:01:51]}  O-O {[%clk 0:02:14]} 16. Rg1 {[%clk 0:01:35]}  Rf7 {[%clk 0:02:06]} 17. Rc1 {[%clk 0:01:21]}  f5 {[%clk 0:02:05]} 18. Qg5 {[%clk 0:01:19]}  f4 {[%clk 0:02:04]} 19. exf4 {[%clk 0:01:11]}  exf4 {[%clk 0:02:03]} 20. Bxf4 {[%clk 0:01:10]}  Nf5 {[%clk 0:02:02]} 21. Kf1 {[%clk 0:01:04]}  Raf8 {[%clk 0:01:32]} 22. Be5 {[%clk 0:00:54]}  g6 {[%clk 0:01:21]} 23. Re1 {[%clk 0:00:45]}  Qc4+ {[%clk 0:01:17]} 24. Kg2 {[%clk 0:00:41]}  Nh4+ {[%clk 0:01:17]} 25. Kh3 {[%clk 0:00:33]}  Nxf3 {[%clk 0:01:14]} 26. Qh6 {[%clk 0:00:29]}  Nxe5 {[%clk 0:01:07]} 27. Rxe5 {[%clk 0:00:27]}  Rf3+ {[%clk 0:00:55]} 28. Rg3 {[%clk 0:00:25]}  Qf1+ {[%clk 0:00:54]} 29. Kg4 {[%clk 0:00:22]}  Qxf2 {[%clk 0:00:45]} 30. Re7 {[%clk 0:00:15]}  R3f4+ {[%clk 0:00:38]} 31. Kh3 {[%clk 0:00:08]}  Qf1+ {[%clk 0:00:38]} 32. Rg2 {[%clk 0:00:08]}  Rf3+ {[%clk 0:00:38]} 33. Kh4 {[%clk 0:00:07]}  Qc4+ {[%clk 0:00:33]} 34. Rg4 {[%clk 0:00:06]}  R3f7 {[%clk 0:00:16]} 35. Rxf7 {[%clk 0:00:02]}  Qxg4+ {[%clk 0:00:12]} 36. Kxg4 {[%clk 0:00:02]}  Rxf7 {[%clk 0:00:13]} 37. Qg5 {[%clk 0:00:03]}  Kg7 {[%clk 0:00:12]} 38. Qd8 {[%clk 0:00:03]}  Rf6 {[%clk 0:00:11]} 39. Qd7+ {[%clk 0:00:03]}  Kh6 {[%clk 0:00:11]} 40. h4 {[%clk 0:00:02]}  Rf5 {[%clk 0:00:10]} 41. Qxc6 {[%clk 0:00:02]}  a5 {[%clk 0:00:10]} 42. Qb6 {[%clk 0:00:01]}  d4 {[%clk 0:00:10]} 43. Qxd4 {[%clk 0:00:01]}  Rh5 {[%clk 0:00:08]} 44. c4 {[%clk 0:00:01]}  a4 {[%clk 0:00:06]} 45. c5 {[%clk 0:00:02]}  a3 {[%clk 0:00:07]} 46. bxa3 {[%clk 0:00:03]}  g5 {[%clk 0:00:07]} 47. hxg5+ {[%clk 0:00:03]}  Rxg5+ {[%clk 0:00:07]} 48. Kh4 {[%clk 0:00:02]}  Rg6 {[%clk 0:00:08]} 49. Qf4+ {[%clk 0:00:02]}  Kg7 {[%clk 0:00:08]} 50. Qe5+ {[%clk 0:00:01]}  Kf7 {[%clk 0:00:08]} 51. c6 {[%clk 0:00:02]}  Rxc6 {[%clk 0:00:08]} 52. Qd5+ {[%clk 0:00:03]}  Re6 {[%clk 0:00:09]} 53. a4 {[%clk 0:00:03]}  Kf6 {[%clk 0:00:08]} 54. a5 {[%clk 0:00:03]}  h6 {[%clk 0:00:08]} 55. Qd4+ {[%clk 0:00:04]}  Ke7 {[%clk 0:00:08]} 56. Qc5+ {[%clk 0:00:04]}  Kd7 {[%clk 0:00:08]} 57. Qb5+ {[%clk 0:00:04]}  Kc7 {[%clk 0:00:08]} 58. a6 {[%clk 0:00:05]}  Rb6 {[%clk 0:00:08]} 59. Qc5+ {[%clk 0:00:05]}  Rc6 {[%clk 0:00:09]} 60. Qa5+ {[%clk 0:00:05]}  Kb8 {[%clk 0:00:09]} 61. a7+ {[%clk 0:00:05]}  Ka8 {[%clk 0:00:10]} 62. Qd5 {[%clk 0:00:06]}  Kxa7 {[%clk 0:00:08]} 63. Qxc6 {[%clk 0:00:06]}  h5 {[%clk 0:00:08]} 64. Qb5 {[%clk 0:00:07]}  Ka8 {[%clk 0:00:08]} 65. a4 {[%clk 0:00:06]}  Ka7 {[%clk 0:00:08]} 66. a5 {[%clk 0:00:06]}  Ka8 {[%clk 0:00:09]} 67. a6 {[%clk 0:00:06]} 1-0


[Site "https://www.chess.com"]